Cogmind - Beta 9.6 --- EXPLORER MODE // 2020.07.26 @ 13:14:44 Player: Jordan Result: Self-destructed Performance ------------- Evolutions (6) 3000 Regions Visited (12) 2400 Robots Destroyed (337) 1685 Value Destroyed (11790) 11790 Prototype IDs (22) 440 Alien Tech Used (0) 0 Bonus (529) 529 TOTAL SCORE: 19844 Bonus ------- High Alert Combat Kills 529 Cogmind --------- Core Integrity 1110/1150 Matter 4/300 Energy 340/340 System Corruption 0% Temperature Cool (0) Movement Treading (160) Location -4/Waste Parts ------- > --- POWER (2) -------- Particle Reactor > --- PROPULSION (4) --- Improved Heavy Treads Centrium Heavy Treads > --- UTILITY (10) ----- Improved Signal Interpreter Long-range Terrain Scanner Terrain Scan Processor Advanced Targeting Computer Improved Kinecellerator Weapon Cycler > --- WEAPON (4) ------- Coil Gun Enhanced Gauss Cannon > --- INVENTORY (4) ---- Improved Heavy Treads KE Penetrator Improved KE Penetrator Peak State ------------ > --- POWER ------------ Particle Reactor Quantum Reactor > --- PROPULSION ------- Improved Heavy Treads Centrium Heavy Treads > --- UTILITY ---------- Advanced Cooling System High-capacity Storage Unit Improved Signal Interpreter Long-range Terrain Scanner Terrain Scan Processor Advanced Targeting Computer Improved Kinecellerator Weapon Cycler Layered Medium Armor Plating Centrium Medium Armor Plating > --- WEAPON ----------- Coil Gun Railgun Railgun Improved KE Penetrator > --- INVENTORY -------- Improved Heavy Treads Hacking Suite Gauss Rifle Gauss Rifle Coil Gun KE Penetrator KE Penetrator Improved KE Penetrator Enhanced Gauss Cannon Hardcell Cannon Micro-nuke Launcher [Rating: 125] Favorites ----------- Power Enhanced Nuclear Core Engine Improved Deuterium Engine Power Core Enhanced Nuclear Core Reactor Quantum Reactor Propulsion Armored Treads Treads Armored Treads Leg Improved Carbon-fiber Leg Wheel Armored Huge Wheel Flight Unit Improved Flight Unit Utility Terrain Scan Processor Device Improved Sensor Array Storage High-capacity Storage Unit Processor Terrain Scan Processor Hackware Hacking Suite Protection Improved Utility Shielding Weapon Heavy Machine Gun Energy Gun EM Pulse Gun Energy Cannon Advanced Beam Cannon Ballistic Gun Heavy Machine Gun Ballistic Cannon Mass Driver Launcher Micro-nuke Launcher Special Weapon Improved Remote Datajack Build | -11 -10 -9 -8 -7 -6 -5 -5 -5 -5 -5 -4 -4 ------- Run | Scr Mat Mat Mat Fac Fac Fac Ext Cet Arc Hub Fac Was Slots Evolved 13 | . 1 2 2 2 2 2 . . . . 2 . Power 1 | . . . . 1 . . . . . . . . Propulsion 2 | . . . 1 . 1 . . . . . . . Utility 8 | . 1 2 1 1 . 2 . . . . 1 . Weapon 2 | . . . . . 1 . . . . . 1 . Parts Attached 250 | 7 2 13 37 57 49 11 27 19 6 6 11 5 Power 46 | 1 . 2 2 12 14 . 4 2 2 4 3 . Engine 22 | 1 . 2 . 5 12 . 1 . 1 . . . Core 16 | . . . 2 7 2 . 3 . . 1 1 . Reactor 8 | . . . . . . . . 2 1 3 2 . Propulsion 54 | 2 . 2 13 9 10 6 4 2 . 1 3 2 Treads 23 | . . . 7 5 . . 4 2 . 1 2 2 Leg 22 | 2 . 2 5 1 6 5 . . . . 1 . Wheel 8 | . . . . 3 4 1 . . . . . . Hover . | . . . . . . . . . . . . . Flight 1 | . . . 1 . . . . . . . . . Utility 66 | 2 2 3 14 19 5 5 3 7 2 1 3 . Device 35 | . 2 2 6 10 3 3 2 3 2 . 2 . Storage 3 | 1 . . 2 . . . . . . . . . Processor 12 | 1 . 1 5 2 1 . 1 1 . . . . Hackware 1 | . . . . 1 . . . . . . . . Protection 15 | . . . 1 6 1 2 . 3 . 1 1 . Artifact . | . . . . . . . . . . . . . Weapon 84 | 2 . 6 8 17 20 . 16 8 2 . 2 3 Energy Gun 8 | 1 . 2 2 1 . . 1 1 . . . . Energy Cannon 4 | . . 1 1 1 1 . . . . . . . Ballistic Gun 55 | 1 . 3 4 11 15 . 11 5 2 . 2 1 Ballistic Cannon 13 | . . . 1 2 4 . 3 2 . . . 1 Launcher 3 | . . . . 2 . . . . . . . 1 Special Weapon 1 | . . . . . . . 1 . . . . . Impact Weapon . | . . . . . . . . . . . . . Slashing Weapon . | . . . . . . . . . . . . . Piercing Weapon . | . . . . . . . . . . . . . Special Melee Weapon . | . . . . . . . . . . . . . Unidentified Prototypes 22 | . . 3 4 5 1 1 . 4 . 1 2 1 Parts Lost 38 | . . . 1 16 5 . 8 2 3 . . 3 Power 11 | . . . . 4 2 . 3 . 1 . . 1 Propulsion 5 | . . . . 4 . . 1 . . . . . Utility 8 | . . . 1 3 . . 1 . 2 . . 1 Weapon 14 | . . . . 5 3 . 3 2 . . . 1 Highest Loss Streak 4 | . . . 1 4 2 . 4 2 2 . . 3 Average Slot Usage (%) 94 | . 100 100 99 93 91 98 99 89 87 87 89 83 Engine 4 | . 12 10 . 5 8 . . . . . . . Core 5 | . . . 7 7 2 11 10 2 . . . . Reactor 1 | . . . . . . . . 8 10 10 9 9 Treads 8 | . . . 14 14 . . 14 12 11 11 10 10 Leg 7 | . 25 20 10 . 10 20 7 . . . . . Wheel 1 | . . . . 2 7 . . . . . . . Device 14 | . 12 20 16 11 12 16 16 16 19 22 21 24 Storage 6 | . 12 10 8 7 6 5 5 5 5 5 5 4 Processor 19 | . 12 20 25 21 18 16 20 18 16 16 15 15 Protection 4 | . . . . 5 6 10 6 8 7 5 8 2 Energy Cannon 1 | . . 7 4 . . . . . . . . . Ballistic Gun 13 | . 12 12 10 11 14 16 12 14 16 16 20 16 Ballistic Cannon 1 | . . . 1 2 3 . 3 1 . . . . Naked Turns . | . . . . . . . . . . . . . Heaviest Build 118 | 17 18 24 52 85 76 79 82 107 105 105 118 111 Greatest Support 160 | 20 20 23 63 63 74 82 108 160 80 150 155 155 Greatest Overweight (x) 3 | 3 . 1 1 3 3 2 1 1 1 1 1 . Average Overweight (x) . | . . . . . . . . . 1 . . . Largest Inventory Capacity 12 | 8 8 8 12 12 12 12 12 12 12 12 12 12 Average Capacity 11 | 7 8 8 8 12 12 12 12 12 12 12 12 10 Most Carried 12 | 2 3 8 12 12 12 12 12 12 11 12 12 12 Average Carried 9 | . 2 6 8 9 11 11 9 10 9 10 11 10 Final Capacity 12 | 8 8 8 12 12 12 12 12 12 12 12 12 4 Final Carried 12 | 2 3 8 11 11 12 12 10 10 10 11 12 4 Class Distribution -------------------- 44% | Scavenger-Skirmisher 29% | Hacker-Skirmisher 14% | Hacker-Mutant 6% | Scavenger-Gunner 4% | Machinist-Skirmisher Dominant Class ---------------- Hacker-Mutant | -10/Materials Hacker-Skirmisher | -9/Materials Scavenger-Skirmisher | -8/Materials Hacker-Skirmisher | -7/Factory Scavenger-Skirmisher | -6/Factory Scavenger-Skirmisher | -5/Factory Scavenger-Skirmisher | -5/Extension Scavenger-Skirmisher | -5/Cetus Scavenger-Gunner | -5/Archives Scavenger-Gunner | -5/Hub_04(d) Scavenger-Gunner | -4/Factory Scavenger-Skirmisher | -4/Waste Resources | -11 -10 -9 -8 -7 -6 -5 -5 -5 -5 -5 -4 -4 ----------- Run | Scr Mat Mat Mat Fac Fac Fac Ext Cet Arc Hub Fac Was Matter Collected 9619 | 244 148 424 851 2133 2061 218 1531 988 278 341 330 72 Remotely 46 | . . . . . . 46 . . . . . . Salvage Created 15103 | 142 410 1011 1848 3250 2282 214 2649 1314 410 543 426 604 Parts 793 | 7 26 75 122 182 109 16 112 58 17 32 28 9 Haulers Intercepted 15 | . 1 5 6 1 1 . . . . . 1 . Recyclers Shooed 13 | . . . 1 7 3 . 2 . . . . . Parts Field Recycled . | . . . . . . . . . . . . . Retrieved Matter . | . . . . . . . . . . . . . Parts Self-Destructed . | . . . . . . . . . . . . . Prevented . | . . . . . . . . . . . . . Kills | -11 -10 -9 -8 -7 -6 -5 -5 -5 -5 -5 -4 -4 ------- Run | Scr Mat Mat Mat Fac Fac Fac Ext Cet Arc Hub Fac Was Combat Hostiles Destroyed 231 | . 8 17 24 62 40 3 31 22 4 11 7 2 Guns 194 | . 7 15 17 53 33 3 22 20 4 11 7 2 Cannons 33 | . . 2 7 6 7 . 9 2 . . . . AOE 4 | . 1 . . 3 . . . . . . . . Classes Destroyed 18 | 2 4 3 3 4 . . 1 . . . . 1 Worker 17 | . . 1 1 12 3 . . . . . . . Builder 25 | . . 3 3 11 1 2 2 . . 2 1 . Tunneler 4 | 2 . . 1 . 1 . . . . . . . Hauler 15 | . 1 5 6 1 1 . . . . . 1 . Recycler 16 | 1 1 1 2 3 1 . 7 . . . . . Operator 7 | . . . 2 . 1 1 2 . 1 . . . Watcher 22 | . 3 4 4 3 2 . 3 1 . . 2 . Swarmer 52 | . 4 10 2 5 8 . 7 4 . 6 6 . Grunt 90 | . 4 3 12 32 18 2 11 8 . . . . Brawler 4 | . . . 1 1 1 . . 1 . . . . Duelist 3 | . . . . 1 1 . 1 . . . . . Sentry 34 | . . 4 6 7 8 . 3 . 4 2 . . Demolisher 2 | . . . . 2 . . . . . . . . Hunter 21 | . . . 3 3 3 . 5 3 . 3 1 . Programmer 11 | . . . . 5 1 1 2 2 . . . . Behemoth 2 | . . . . . . . 2 . . . . . Compactor 2 | . . . . . . . . . . . . 2 Cetus Guard 4 | . . . . . . . . 4 . . . . Assembled 6 | . . . . 6 . . . . . . . . Best Kill Streak 15 | 2 4 10 12 15 5 4 10 5 1 5 9 1 Combat Bots Only 8 | . 2 5 7 6 4 2 8 5 1 4 6 1 Max Kills in Single Turn 3 | 1 2 2 2 3 2 2 3 2 1 2 3 1 Gunslinging 1 | . 1 1 . 1 1 . 1 1 . 1 1 . Exploded 3 | . 1 . . 3 . . . . . . . . Melee . | . . . . . . . . . . . . . Uniques/NPCs Destroyed . | . . . . . . . . . . . . . Combat | -11 -10 -9 -8 -7 -6 -5 -5 -5 -5 -5 -4 -4 -------- Run | Scr Mat Mat Mat Fac Fac Fac Ext Cet Arc Hub Fac Was Damage Taken 12406 | . 117 417 579 3801 2059 85 2439 1737 388 269 279 236 Core 1556 | . 22 46 100 482 383 13 274 136 47 13 11 29 Absorbed by Shields 44 | . . . . . . . 44 . . . . . Core Remaining (%) 70 | 100 91 88 81 31 54 . . . . 51 . . Volleys Fired 737 | 6 28 59 95 202 117 9 94 61 19 19 12 16 Largest 4 | 2 2 2 2 2 3 3 3 3 3 3 4 4 Hottest 155 | 60 60 91 93 76 135 88 142 127 98 105 135 155 Shots Fired 1835 | 12 56 118 187 402 341 27 282 183 57 58 48 64 Gun 1562 | 12 56 102 135 340 281 27 221 164 57 58 48 61 Cannon 265 | . . 16 52 56 60 . 61 19 . . . 1 Launcher 8 | . . . . 6 . . . . . . . 2 Special . | . . . . . . . . . . . . . Kinetic 1726 | 6 28 98 140 396 341 27 282 183 57 58 48 62 Thermal 63 | . . 16 47 . . . . . . . . . Explosive 8 | . . . . 6 . . . . . . . 2 Electromagnetic 38 | 6 28 4 . . . . . . . . . . Robot Hit Streak 71 | 8 14 37 34 33 33 19 71 43 23 64 29 29 Robot Miss Streak 3 | 2 1 2 1 2 3 1 2 1 1 1 1 1 Penetration Max 1 | . . . 1 1 1 . 1 1 . 1 . 1 Secondary Targets 37 | . 1 6 . 14 3 . 5 5 . 1 1 1 Max Gunslinging Chain 1 | . 1 1 . 1 1 . 1 1 . 1 1 1 Shots Hit Robots 1503 | 9 39 98 156 338 267 23 243 146 47 48 32 57 Core Hits 632 | 4 17 41 68 163 118 10 93 57 14 23 16 8 Critical Hits 69 | . . 2 7 5 3 2 10 20 9 3 5 3 Critical Kills 29 | . . . 1 3 1 2 5 7 2 3 5 . Critical Parts Destroyed 30 | . . 1 6 2 2 . 5 12 2 . . . Melee Attacks . | . . . . . . . . . . . . . Impact . | . . . . . . . . . . . . . Slashing . | . . . . . . . . . . . . . Piercing . | . . . . . . . . . . . . . Sneak Attacks . | . . . . . . . . . . . . . Combat Hostiles . | . . . . . . . . . . . . . Follow-up Attacks . | . . . . . . . . . . . . . Damage Inflicted 34949 | 112 686 1473 2919 8313 5577 567 6211 3554 1105 1330 761 2341 Guns 28527 | 112 502 1165 2051 6635 4704 567 4540 3271 1105 1330 761 1784 Cannons 5090 | . . 305 862 1057 873 . 1671 283 . . . 39 Explosions 1284 | . 184 . . 582 . . . . . . . 518 Melee . | . . . . . . . . . . . . . Ramming 48 | . . 3 6 39 . . . . . . . . Kinetic 32013 | 45 160 1111 2077 7692 5577 567 6211 3554 1105 1330 761 1823 Thermal 1325 | . 184 305 836 . . . . . . . . . Explosive 1100 | . . . . 582 . . . . . . . 518 Electromagnetic 463 | 67 342 54 . . . . . . . . . . Impact . | . . . . . . . . . . . . . Slashing . | . . . . . . . . . . . . . Piercing . | . . . . . . . . . . . . . Highest Corruption 5 | . . . 5 3 . . 2 3 3 5 . . Average Corruption 2 | . . . 4 2 . . 2 2 3 4 . . Corruption Purged . | . . . . . . . . . . . . . Effects 98 | . . . 39 22 . . 6 14 7 10 . . Message Errors 16 | . . . 3 6 . . 3 . 2 2 . . Matter Fused 13 | . . . 6 3 . . . 1 1 2 . . Heat Flow Errors 10 | . . . 5 . . . . 4 . 1 . . Energy Discharges 6 | . . . 2 1 . . . . 2 1 . . Parts Rejected 1 | . . . 1 . . . . . . . . . Data Loss (minor) 14 | . . . 7 3 . . 1 2 . 1 . . Data Loss (major) 2 | . . . 2 . . . . . . . . . Misfires 2 | . . . 1 . . . . . . 1 . . Targeting Errors 30 | . . . 8 9 . . 2 7 2 2 . . Weapon Failures 4 | . . . 4 . . . . . . . . . Overload Shots . | . . . . . . . . . . . . . Overflow Damage 112 | . . . 1 46 . . 53 12 . . . . Projectiles 68 | . . . 1 2 . . 53 12 . . . . Explosions 44 | . . . . 44 . . . . . . . . Melee . | . . . . . . . . . . . . . Knockbacks 16 | . . . . 2 5 . 6 3 . . . . Impact . | . . . . . . . . . . . . . Kinetic 16 | . . . . 2 5 . 6 3 . . . . Secondary . | . . . . . . . . . . . . . Self-Inflicted Damage 85 | . . 1 . . . . . . . . . 84 Shots 2 | . . . . . . . . . . . . 2 Rammed 8 | . . 1 2 5 . . . . . . . . Targets Rammed 8 | . . 1 2 5 . . . . . . . . Kicked . | . . . . . . . . . . . . . Crushed . | . . . . . . . . . . . . . Highest Temperature 481 | . 18 123 272 296 404 239 481 450 13 241 42 90 Average Temperature 106 | . 10 31 56 81 115 87 156 175 10 24 26 28 Received Heat Transfer 4031 | . 30 189 369 1656 726 27 560 357 117 . . . Effects 36 | . . . . . 12 . 12 12 . . . . Shutdowns 17 | . . . . . 5 . 6 6 . . . . Energy Bleed 3 | . . . . . . . 2 1 . . . . Interference 11 | . . . . . 7 . . 4 . . . . Matter Decay 2 | . . . . . . . 2 . . . . . Short Circuit 1 | . . . . . . . . 1 . . . . Damage (minor) 2 | . . . . . . . 2 . . . . . Siege Activations . | . . . . . . . . . . . . . Robots Corrupted . | . . . . . . . . . . . . . Combat Hostiles . | . . . . . . . . . . . . . Parts Fried . | . . . . . . . . . . . . . Impact Corruptions . | . . . . . . . . . . . . . Robots Melted . | . . . . . . . . . . . . . Combat Hostiles . | . . . . . . . . . . . . . Parts Melted 5 | . . 1 4 . . . . . . . . . Heat Transferred 2272 | . 200 555 1517 . . . . . . . . . Parts Sabotaged . | . . . . . . . . . . . . . Parts Stolen . | . . . . . . . . . . . . . Parts Stripped . | . . . . . . . . . . . . . Power Chain Reactions 3 | . 3 . . . . . . . . . . . Missiles Intercepted . | . . . . . . . . . . . . . Alert | -11 -10 -9 -8 -7 -6 -5 -5 -5 -5 -5 -4 -4 ------- Run | Scr Mat Mat Mat Fac Fac Fac Ext Cet Arc Hub Fac Was Peak Influence 930 | 15 245 549 448 930 551 210 404 298 118 436 434 156 Average Influence 213 | 7 189 258 161 212 292 165 165 180 83 303 236 106 Maximum Alert Level 3 | . 1 2 2 3 2 1 2 1 . 2 2 . Low Security (%) 55 | 100 37 30 69 67 25 75 70 55 100 26 58 100 Level 1 30 | . 62 53 28 9 50 24 26 44 . 57 24 . Level 2 11 | . . 16 2 13 23 . 3 . . 16 17 . Level 3 2 | . . . . 9 . . . . . . . . Level 4 . | . . . . . . . . . . . . . Level 5 . | . . . . . . . . . . . . . High Security . | . . . . . . . . . . . . . Max Security . | . . . . . . . . . . . . . Squads Dispatched 53 | . . 1 3 22 16 1 5 2 . 2 1 . Investigation 25 | . . 1 2 9 8 1 1 2 . . 1 . Extermination 6 | . . . . 4 2 . . . . . . . Reinforcement 15 | . . . 1 6 2 . 4 . . 2 . . Assault . | . . . . . . . . . . . . . Garrison 7 | . . . . 3 4 . . . . . . . Intercept . | . . . . . . . . . . . . . Construction Impeded 6 | . . . 1 3 1 . 1 . . . . . Haulers Reinforced . | . . . . . . . . . . . . . Stealth | -11 -10 -9 -8 -7 -6 -5 -5 -5 -5 -5 -4 -4 --------- Run | Scr Mat Mat Mat Fac Fac Fac Ext Cet Arc Hub Fac Was Distress Signals 15 | . 2 2 2 2 2 . 2 1 . 1 1 . Communications Jammed . | . . . . . . . . . . . . . Distress Signals . | . . . . . . . . . . . . . Times Spotted 322 | . 10 26 37 86 55 4 46 27 4 14 8 5 Peak Tracking Total 7 | . 4 6 4 7 7 2 7 6 1 4 7 3 Tactical Retreats 19 | . . . 1 7 5 . 3 3 . . . . Traps | -11 -10 -9 -8 -7 -6 -5 -5 -5 -5 -5 -4 -4 ------- Run | Scr Mat Mat Mat Fac Fac Fac Ext Cet Arc Hub Fac Was Traps Triggered 18 | . . . . 5 8 . 1 . . 3 1 . Indirectly . | . . . . . . . . . . . . . Trap Hack Attempts . | . . . . . . . . . . . . . Triggered . | . . . . . . . . . . . . . Disarmed . | . . . . . . . . . . . . . Reprogrammed . | . . . . . . . . . . . . . Reused . | . . . . . . . . . . . . . Traps Extracted . | . . . . . . . . . . . . . Installed . | . . . . . . . . . . . . . Triggered . | . . . . . . . . . . . . . Machines | -11 -10 -9 -8 -7 -6 -5 -5 -5 -5 -5 -4 -4 ---------- Run | Scr Mat Mat Mat Fac Fac Fac Ext Cet Arc Hub Fac Was Machines Disabled 22 | . . . 1 5 2 . 3 4 1 6 . . Max in Single Turn 1 | . . . 1 1 1 . 1 1 1 1 . . Garrison Access 2 | . . . . . 2 . . . . . . . Machines Sabotaged . | . . . . . . . . . . . . . Garrisons Compromised . | . . . . . . . . . . . . . Overloaded Fab Kills . | . . . . . . . . . . . . . Fab Network Shutdowns 2 | . . . . 1 1 . . . . . . . Hacking | -11 -10 -9 -8 -7 -6 -5 -5 -5 -5 -5 -4 -4 --------- Run | Scr Mat Mat Mat Fac Fac Fac Ext Cet Arc Hub Fac Was Machines Accessed 46 | . . 4 5 13 13 2 5 3 . . 1 . Terminals 19 | . . 2 3 4 3 . 4 3 . . . . Fabricators 8 | . . . . 4 4 . . . . . . . Repair Stations 6 | . . . . 3 2 . . . . . 1 . Recycling Units 5 | . . 1 . . 2 1 1 . . . . . Scanalyzers 6 | . . 1 2 2 . 1 . . . . . . Garrison Access 2 | . . . . . 2 . . . . . . . Total Hacks 156 | . . 19 15 50 41 4 15 8 . . 4 . Successful 113 | . . 19 11 36 29 3 8 5 . . 2 . Failed 43 | . . . 4 14 12 1 7 3 . . 2 . Catastrophic . | . . . . . . . . . . . . . Database Lockouts . | . . . . . . . . . . . . . Manual 2 | . . . . . . . . . 2 . . . Terminals 58 | . . 7 9 11 9 . 14 8 . . . . Fabricators 34 | . . . . 17 17 . . . . . . . Repair Stations 25 | . . . . 12 9 . . . . . 4 . Recycling Units 8 | . . 2 . . 4 1 1 . . . . . Scanalyzers 29 | . . 10 6 10 . 3 . . . . . . Garrison Access 2 | . . . . . 2 . . . . . . . Terminal Hacks 42 | . . 7 8 10 5 . 7 5 . . . . Record 24 | . . 5 5 4 3 . 2 5 . . . . Part Schematic 5 | . . . . 2 1 . 2 . . . . . Robot Schematic 1 | . . . . 1 . . . . . . . . Open Door 1 | . . . . . . . 1 . . . . . Repair Station Index 1 | . . . . 1 . . . . . . . . Scanalyzer Index 1 | . . . 1 . . . . . . . . . Alert Level 4 | . . 1 1 1 . . 1 . . . . . Locate Traps 1 | . . . . 1 . . . . . . . . Recall Investigation 1 | . . . . . 1 . . . . . . . Registered Components 1 | . . 1 . . . . . . . . . . Registered Prototypes 1 | . . . . . . . 1 . . . . . Zone Layout 1 | . . . 1 . . . . . . . . . Fabricator Hacks 23 | . . . . 10 13 . . . . . . . Load Schematic 10 | . . . . 4 6 . . . . . . . Build 13 | . . . . 6 7 . . . . . . . Repair Station Hacks 17 | . . . . 8 7 . . . . . 2 . Scan Component 10 | . . . . 5 4 . . . . . 1 . Repair 7 | . . . . 3 3 . . . . . 1 . Recycling Unit Hacks 6 | . . 2 . . 2 1 1 . . . . . Report Inventory 4 | . . 1 . . 1 1 1 . . . . . Retrieve Components 2 | . . 1 . . 1 . . . . . . . Scanalyzer 23 | . . 10 3 8 . 2 . . . . . . Insert Component 12 | . . 5 2 4 . 1 . . . . . . Analyze 11 | . . 5 1 4 . 1 . . . . . . Garrison Access Hacks 2 | . . . . . 2 . . . . . . . Seal Access 2 | . . . . . 2 . . . . . . . Unauthorized Hacks . | . . . . . . . . . . . . . Terminals . | . . . . . . . . . . . . . Fabricators . | . . . . . . . . . . . . . Repair Stations . | . . . . . . . . . . . . . Recycling Units . | . . . . . . . . . . . . . Scanalyzers . | . . . . . . . . . . . . . Garrison Access . | . . . . . . . . . . . . . Data Cores Recovered 2 | . . . 1 . . 1 . . . . . . Used . | . . . . . . . . . . . . . Hacking Detections 36 | . . 3 3 12 10 2 3 2 . . 1 . Full Trace Events 25 | . . 2 2 8 8 1 1 2 . . 1 . Feedback Events 1 | . . . 1 . . . . . . . . . Corruption 1 | . . . 1 . . . . . . . . . Feedback Blocked . | . . . . . . . . . . . . . Robot Schematics Acquired 1 | . . . . 1 . . . . . . . . Robots Built . | . . . . . . . . . . . . . Matter . | . . . . . . . . . . . . . Time . | . . . . . . . . . . . . . Total Robot Build Rating . | . . . . . . . . . . . . . Part Schematics Acquired 14 | . . 4 1 5 1 1 2 . . . . . Parts Built 13 | . . . . 6 7 . . . . . . . Matter 1684 | . . . . 884 800 . . . . . . . Time 521 | . . . . 228 293 . . . . . . . Total Part Build Rating 60 | . . . . 28 32 . . . . . . . Parts Repaired 7 | . . . . 3 3 . . . . . 1 . Time 202 | . . . . 102 69 . . . . . 31 . Parts Recycled . | . . . . . . . . . . . . . Recycled Matter . | . . . . . . . . . . . . . Retrieved Matter . | . . . . . . . . . . . . . Retrieved Components 4 | . . 3 . . 1 . . . . . . . Parts Scanalyzed 11 | . . 5 1 4 . 1 . . . . . . Part Schematics Acquired 9 | . . 4 1 3 . 1 . . . . . . Parts Damaged . | . . . . . . . . . . . . . Bothacking | -11 -10 -9 -8 -7 -6 -5 -5 -5 -5 -5 -4 -4 ------------ Run | Scr Mat Mat Mat Fac Fac Fac Ext Cet Arc Hub Fac Was Used RIF Installer . | . . . . . . . . . . . . . Robots Hacked . | . . . . . . . . . . . . . Non-combat . | . . . . . . . . . . . . . Combat . | . . . . . . . . . . . . . Robot Hacks Applied . | . . . . . . . . . . . . . Relay Couplers Released . | . . . . . . . . . . . . . Robots Rewired . | . . . . . . . . . . . . . Allies Hacked . | . . . . . . . . . . . . . Hacks Repelled . | . . . . . . . . . . . . . Allies | -11 -10 -9 -8 -7 -6 -5 -5 -5 -5 -5 -4 -4 -------- Run | Scr Mat Mat Mat Fac Fac Fac Ext Cet Arc Hub Fac Was Total Allies 1 | . . . . . . . . . . . . 1 Largest Group 1 | . . . . . . . . . . . . 1 Highest-Rated Group 46 | . . . . . . . . . . . . 46 Highest-Rated Ally 46 | . . . . . . . . . . . . 46 Total Orders . | . . . . . . . . . . . . . Ally Attacks 6 | . . . . . . . . . . . . 6 Total Damage 179 | . . . . . . . . . . . . 179 Kills . | . . . . . . . . . . . . . Allies Corrupted . | . . . . . . . . . . . . . Allies Melted . | . . . . . . . . . . . . . Intel | -11 -10 -9 -8 -7 -6 -5 -5 -5 -5 -5 -4 -4 ------- Run | Scr Mat Mat Mat Fac Fac Fac Ext Cet Arc Hub Fac Was Robot Analysis Total . | . . . . . . . . . . . . . Derelict Logs Recovered . | . . . . . . . . . . . . . Drone Launches . | . . . . . . . . . . . . . Drone Recoveries . | . . . . . . . . . . . . . Exploration | -11 -10 -9 -8 -7 -6 -5 -5 -5 -5 -5 -4 -4 ------------- Run | Scr Mat Mat Mat Fac Fac Fac Ext Cet Arc Hub Fac Was Turns Passed 12337 | 95 328 1090 1415 3144 2412 345 1539 801 287 354 365 162 Spaces Moved 6004 | 53 199 478 692 1389 1320 233 778 339 114 177 167 65 Core 9 | 9 . . . . . . . . . . . . Treads 2618 | . . . 372 868 . . 516 339 114 177 167 65 Legs 2008 | 44 199 478 320 4 476 225 262 . . . . . Wheels 1369 | . . . . 517 844 8 . . . . . . Hover . | . . . . . . . . . . . . . Flight . | . . . . . . . . . . . . . Fastest Speed 50 | 50 120 120 120 110 110 110 120 160 180 160 160 160 Average Speed 141 | 123 120 142 144 151 116 120 153 165 180 161 161 160 Slowest Speed 230 | 200 120 150 190 230 210 180 170 180 180 180 180 160 Overloaded Moves . | . . . . . . . . . . . . . Propulsion Burnouts . | . . . . . . . . . . . . . Robots Hopped . | . . . . . . . . . . . . . Cave-ins Triggered 1 | . . . . 1 . . . . . . . . Exploration Rate (%) 38 | 3 39 43 56 39 25 6 81 69 84 21 5 26 Regions Visited 12 Branch Regions 4 Pre-discovered Areas . | . . . . . . . . . . . . . Known Exits Taken 11 | 1 1 1 1 1 1 1 1 1 1 1 . . Unknown Exits Taken . | . . . . . . . . . . . . . Scrap Searched . | . . . . . . . . . . . . . Spaces Dug . | . . . . . . . . . . . . . Terrain Destroyed 295 | . 11 . 5 88 19 . 22 28 15 27 13 67 Melee . | . . . . . . . . . . . . . Projectile 144 | . . . 5 10 19 . 22 28 15 27 13 5 AOE 151 | . 11 . . 78 . . . . . . . 62 Actions | -11 -10 -9 -8 -7 -6 -5 -5 -5 -5 -5 -4 -4 --------- Run | Scr Mat Mat Mat Fac Fac Fac Ext Cet Arc Hub Fac Was Total 8473 | 67 231 772 940 2069 1986 283 965 459 155 212 243 91 Wait 1146 | . 1 194 54 361 432 15 32 14 12 . 31 . Move 5993 | 52 198 477 691 1388 1319 232 777 338 113 176 167 65 Hop . | . . . . . . . . . . . . . Pick Up 133 | 2 2 15 25 20 15 8 15 12 3 5 9 2 Fast Attach 100 | 7 . 4 14 23 23 5 6 3 2 4 8 1 Attach 58 | . 1 2 6 15 7 4 10 4 2 1 3 3 Detach 11 | . . . . 5 5 . . 1 . . . . Swap 92 | . 1 7 17 19 19 2 11 12 2 1 . 1 Drop 168 | . . 13 36 23 33 8 17 14 2 6 13 3 Fire 737 | 6 28 59 95 202 117 9 94 61 19 19 12 16 Melee . | . . . . . . . . . . . . . Ram . | . . . . . . . . . . . . . Kick 1 | . . 1 . . . . . . . . . . Crush 7 | . . . 2 5 . . . . . . . . Escape Stasis 27 | . . . . 8 16 . 3 . . . . . Rewire . | . . . . . . . . . . . . . Trap . | . . . . . . . . . . . . . Miscellaneous . | . . . . . . . . . . . . . Route ------- -11/Scrapyard -10/Materials (discovered 2 exits: *Mat x2) -9/Materials -8/Materials (discovered 3 exits: *Fac x2 / Sto) -7/Factory (discovered 2 exits: *Fac / *Low) -6/Factory -5/Factory -5/Extension (discovered 3 exits: *Fac x2 / *Cet) -5/Cetus (discovered 2 exits: *Fac / *Arc) -5/Archives (discovered 3 exits: *Fac / *Hub x2) -5/Hub_04(d) -4/Factory -4/Waste History --------- Turn | Location | Event 9 | -11/Scrapyard | Identified exit to Materials 9 | -11/Scrapyard | Discovered exit to Materials (range 15) 96 | -11/Scrapyard | Entered Materials 96 | -10/Materials | Evolved 1 slot: Utility x1 229 | -10/Materials | Identified exit to Materials 229 | -10/Materials | Discovered exit to Materials (range 10) 318 | -10/Materials | Build established: Hacker-Mutant 413 | -10/Materials | Discovered exit to Materials (range 10) 424 | -10/Materials | Entered another Materials area 424 | -9/Materials | Evolved 2 slots: Utility x2 722 | -9/Materials | Build established: Hacker-Skirmisher 884 | -9/Materials | Identified exit to Materials 884 | -9/Materials | Discovered exit to Materials (range 9) 1514 | -9/Materials | Entered another Materials area 1514 | -8/Materials | Evolved 2 slots: Propulsion x1, Utility x1 1730 | -8/Materials | Identified exit to Storage 1730 | -8/Materials | Discovered exit to Storage (range 16) 1748 | -8/Materials | Identified exit to Factory 1748 | -8/Materials | Discovered exit to Factory (range 8) 1896 | -8/Materials | Build established: Scavenger-Skirmisher 2589 | -8/Materials | Destroyed 7 combat bots 2714 | -8/Materials | Discovered exit to Factory (range 11) 2929 | -8/Materials | Entered Factory 2929 | -7/Factory | Evolved 2 slots: Power x1, Utility x1 3022 | -7/Factory | Build established: Hacker-Skirmisher 3744 | -7/Factory | Repaired Imp. Sensor Array 3783 | -7/Factory | Repaired Arm. Treads 3957 | -7/Factory | Fabricated Enh. Nuclear Core (x1) 4026 | -7/Factory | Fabricated Enh. Nuclear Core (x1) 4336 | -7/Factory | Repaired Imp. Treads 4860 | -7/Factory | Assembled infested ambush trap array 4904 | -7/Factory | Crushed by falling debris 4941 | -7/Factory | Lost 4 parts (1n1u2w) 5034 | -7/Factory | Fabricated Hvy. Machine Gun (x2) 5095 | -7/Factory | Lost 4 parts (2p1n1w) 5132 | -7/Factory | Garrison activated, responded to threat 5165 | -7/Factory | Build established: Hacker-Mutant 5221 | -7/Factory | Core integrity fell below 50% 5446 | -7/Factory | Identified exit to Lower Caves 5446 | -7/Factory | Discovered exit to Lower Caves (range 15) 5641 | -7/Factory | Identified exit to Factory 5641 | -7/Factory | Discovered exit to Factory (range 12) 5720 | -7/Factory | Local fabrication network quarantined 5736 | -7/Factory | Fabricated Hvy. Machine Gun (x2) 6073 | -7/Factory | Entered another Factory area 6073 | -6/Factory | Evolved 2 slots: Propulsion x1, Weapon x1 6373 | -6/Factory | Build established: Hacker-Skirmisher 6487 | -6/Factory | Garrison activated, responded to threat 6702 | -6/Factory | Build established: Scavenger-Skirmisher 7085 | -6/Factory | Fabricated Arm. Huge Wheel (x2) 7196 | -6/Factory | Fabricated Hvy. Machine Gun (x2) 7315 | -6/Factory | Repaired Hvy. Machine Gun 7348 | -6/Factory | Repaired Lrn. Terrain Scanner 7371 | -6/Factory | Repaired Arm. Huge Wheel 7702 | -6/Factory | Fabricated Hvy. Machine Gun (x2) 7774 | -6/Factory | Local fabrication network quarantined 7775 | -6/Factory | Fabricated Enh. Nuclear Core (x1) 8083 | -6/Factory | Build established: Machinist-Skirmisher 8189 | -6/Factory | Garrison activated, responded to threat 8283 | -6/Factory | Identified exit to Factory 8283 | -6/Factory | Discovered exit to Factory (range 8) 8485 | -6/Factory | Entered another Factory area 8485 | -5/Factory | Evolved 2 slots: Utility x2 8667 | -5/Factory | Build established: Scavenger-Skirmisher 8743 | -5/Factory | Identified exit to Extension 8743 | -5/Factory | Discovered exit to Extension (range 13) 8830 | -5/Factory | Entered Extension 8955 | -5/Extension | Disrupted transfer network 9175 | -5/Extension | Destroyed 8 combat bots 9195 | -5/Extension | Lost 4 parts (2p1u1w) 9351 | -5/Extension | Spotted B-75 Beast 9402 | -5/Extension | Spotted B-75 Beast 9418 | -5/Extension | Destroyed B-75 Beast 9456 | -5/Extension | Destroyed B-75 Beast 9549 | -5/Extension | Identified exit to Factory 9549 | -5/Extension | Discovered exit to Factory (range 18) 9984 | -5/Extension | Discovered exit to Factory (range 16) 9986 | -5/Extension | Identified exit to Cetus 9986 | -5/Extension | Discovered exit to Cetus (range 15) 10369 | -5/Extension | Entered Cetus 10391 | -5/Cetus | Spotted Cetus Guard 10391 | -5/Cetus | Spotted Cetus Guard 10403 | -5/Cetus | Spotted Cetus Guard 10407 | -5/Cetus | Spotted Cetus Guard 10408 | -5/Cetus | Destroyed Cetus Guard 10417 | -5/Cetus | Destroyed Cetus Guard 10430 | -5/Cetus | Destroyed Cetus Guard 10443 | -5/Cetus | Destroyed Cetus Guard 10714 | -5/Cetus | Discovered exit to Factory (range 15) 11071 | -5/Cetus | Cetus Manufacturing Module disabled 11134 | -5/Cetus | Identified exit to Archives 11134 | -5/Cetus | Discovered exit to Archives (range 21) 11170 | -5/Cetus | Entered Archives 11321 | -5/Archives | Identified exit to Hub_04(d) 11321 | -5/Archives | Discovered exit to Hub_04(d) (range 16) 11341 | -5/Archives | Discovered exit to Hub_04(d) (range 20) 11376 | -5/Archives | Discovered exit to Factory (range 13) 11400 | -5/Archives | Unable to access archive contents 11418 | -5/Archives | Unable to access archive contents 11457 | -5/Archives | Entered Hub_04(d) 11543 | -5/Hub_04(d) | Discovered exit to Factory (range 9) 11623 | -5/Hub_04(d) | Build established: Scavenger-Gunner 11811 | -5/Hub_04(d) | Entered Factory 11811 | -4/Factory | Evolved 2 slots: Utility x1, Weapon x1 11939 | -4/Factory | Repaired Broken Particle Reactor 12176 | -4/Factory | Sucked down chute 12176 | -4/Factory | Entered Waste 12177 | -4/Waste | Met a frightened Derelict 12207 | -4/Waste | Spotted C-40 Crusher 12225 | -4/Waste | Destroyed C-40 Crusher 12228 | -4/Waste | Spotted C-40 Crusher 12246 | -4/Waste | Destroyed C-40 Crusher 12252 | -4/Waste | Spotted C-40 Crusher 12252 | -4/Waste | Spotted C-40 Crusher 12257 | -4/Waste | Crushed by Compactor (0 parts destroyed, 1 dropped) 12262 | -4/Waste | Crushed by Compactor (0 parts destroyed, 1 dropped) 12308 | -4/Waste | Crushed by Compactor (1 part destroyed, 2 dropped) 12311 | -4/Waste | Crushed by Compactor (1 part destroyed, 1 dropped) 12314 | -4/Waste | Crushed by Compactor (0 parts destroyed, 1 dropped) 12322 | -4/Waste | Spotted C-40 Crusher 12338 | -4/Waste | Crushed by Compactor (1 part destroyed) 12338 | -4/Waste | Self-destructed Last Messages --------------- 12307_ The unstable cave ceiling collapses. 12308_ Quantum Reactor crushed. 12308_ Adv. Cooling System crushed. 12308_ Railgun crushed. 12309_ The unstable cave ceiling collapses. 12311_ Slug penetrates C-40 Crusher. 12311_ Railgun crushed. 12311_ Hcp. Storage Unit crushed. 12314_ The unstable cave ceiling collapses. 12314_ Gauss Rifle crushed. 12314_ Coil Gun crushed. 12314_ KE Penetrator crushed. 12316_ The unstable cave ceiling collapses. 12318_ Micro-nuke Launcher crushed. 12320_ KE Penetrator crushed. 12320_ Hcp. Storage Unit crushed. 12320_ Adv. Cooling System crushed. 12322_ Imp. Hacking Suite crushed. 12338_ Adv. Sensor Array crushed. [Achievement: Punisher] Map ----- +----------------------------------------------------+ | ??????###???#??#??????##??###?#?#?? ?? ???#?????# | | ?????#?##?#??##?###########????#?#?? ? ???#??#? | | ????#?#?####?#######????###???#??##? ? ?? ?##??#?? | | ?????###??###??####???#??#?###???#? ?? ?? #???#?# | | ???####???###???####???##########???? ??? #####?? | | ??#?#?#?#?###???##????######?###?##? ? ? ?####?# | | #????????#?#?#?#?#?#??#?#######?#?#? ??? ?####?## | | ?#??####??######??#####?# =##?####? ? ##?##???? | | ??######?################ ###??### ??#??#???#? | | ???###?#### #### #?###??#?? #???#??#? | | ?#?###???## #??# ######## ###???##? | | ?#??##?##?# #### ##?#?###? ? ?##?##?#? | | ???#?#?#### #######? ? ? ? ? ? | | ??????###?# = ;####### ? ?? ? ? | | ??#?#?##### ####?### ??? ? | | ??#???#??## ######?#? ? ??? | | ??#?#?##### #### #?###??# ? #???###?? | | #????#?##?# % #### ##?##### ? ?##?#??##? | | ???#??##?## #### ##??####? ? ##??##?#? | | ?####?#??################ ##?###?? #####???? | | ??#??######?####?#?#?#### ######## ###?#???? | | ???#?#?##?#####?#??#?## #??#?###? | | ?????##?###?##??#?##### ?#?#####? | | ???####?##???#?#####?## #?####??? | | ???#???#####??###?#?### ####?#?#? | | #?#?##????#?#?#?##?######@ ;####### ?####???? | | ?????###???##??#?##?##?## CC ;###?#?# ? ?##?#????? | | ??#???#??######??####?### CC #####? ???#?#?#? | | ?#???#?#??#?###?#?#?#### CC ##??#?# ??###?????? | | ?????##??#####?####### CC ####?#? ####??#?? | | ##??????#??##?##?#?### CC #?##?# ?? ?? ???? | | ??#####?##??#????#### CC ####?? ?? ??? ?? | | ???#???#???##?#??#?## #?#?#? ?? ???? ? | | ????#?##?##???####?### ##?##?? ?? ? ? ?? | | ????##??####???##?### # # #?#?? ? ?###?###?? | | ?##??#???##?###?#?### # #######???? ????##??? | | ??#?##?###??#?######## # #?##?#? ??##?##??? | | ??#??#####????##???#?# ##?###? ???###?#? | | ?#?#?????##?##?##????# ###?#?? ????#??#?#?? | | ?????#??????#??#####?# *] ##?###??###??#???##? | | ?????#?#####?#?###?#?### ####?#???###?#?????? | | ?????#?#?##??#?##??#?##########?##?#?###?##??##??? | | ?????????#??????#??##??####??#??#?##???####?#????? | | ??????###??##????###?????##??##?##??????##??#??#?? | | ???????????#?#??#??#?####?###??#?##??#?###?#??#??? | | ????##?#??####??#?#?###?##?#?#?#?##?#?#???#????#?? | | ?????????????##??#####?????????#??###?#???#??#???? | | ?????#?????##??###???#?###?###???##?#?#??????????? | | ????#??????##????#??#?####????#?????????#????????? | | ???????##?#?##?#???#?##???#?##?#?#????#?#?#?#????? | +----------------------------------------------------+ Best States ------------- Heat Dissipation 74 Energy Generation 45 Energy Capacity 600 Matter Stores 300 Matter Capacity 300 Sight Range 16 Robot Scan Range 16 Terrain Scan Range 24 Terrain Scan Density 85 Base Temperature (-) 100 Armor Coverage 450 Resistance: KI 65 Resistance: TH 35 Resistance: EX 35 Resistance: EM 35 Resistance: I 35 Resistance: S 35 Resistance: P 35 Utility Shielding 66 Weapon Cycling 15 Evasion (%) 40 Targeting Accuracy 8 Recoil Reduction 4 Kinecelleration 40 Salvage Targeting 2 Offensive Hacking 30 Item Schematics ----------------- Imp. Terrain Scanner | -9/Materials | Scanalyzed Terrain Scan Processor | -9/Materials | Scanalyzed Rocket Launcher | -9/Materials | Scanalyzed Adv. Beam Cannon | -9/Materials | Scanalyzed Imp. Assault Rifle | -8/Materials | Scanalyzed Enh. Nuclear Core | -7/Factory | Scanalyzed Imp. Heavy Armor Plating | -7/Factory | Hacked Arm. Huge Wheel | -7/Factory | Scanalyzed Adv. Assault Cannon | -7/Factory | Scanalyzed Hvy. Machine Gun | -7/Factory | Hacked KE Penetrator | -6/Factory | Hacked Arm. Medium Treads | -5/Factory | Scanalyzed Hvy. Gauss Cannon | -5/Extension | Hacked Adv. Medium Treads | -5/Extension | Hacked Robot Schematics ------------------ B-36 Bruiser | -7/Factory | Hacked Fabricated ------------ Enh. Nuclear Core | x1 | -7/Factory Enh. Nuclear Core | x1 | -7/Factory Hvy. Machine Gun | x2 | -7/Factory Hvy. Machine Gun | x2 | -7/Factory Arm. Huge Wheel | x2 | -6/Factory Hvy. Machine Gun | x2 | -6/Factory Hvy. Machine Gun | x2 | -6/Factory Enh. Nuclear Core | x1 | -6/Factory Alien Tech Used ----------------- None Achievements -------------- Knowing Is Half The Battle Ooh, Shiny! Oops Party Time Production Line Punisher Respectable Loadout Challenges ------------ None Game ------ Seed DisruptorChipNukerbomber Manual? 0 Play Time 02:51:31 Cumulative 12.8 hours Start 2020.07.26 @ 10:17:02 End 2020.07.26 @ 13:14:44 Sessions 1 Manual Loads 0 Difficulty Explorer Special Mode None Game No. 9 Rogue 0 Adventurer 7 Explorer 2 Win Type - Total 0 Types 0/0/0/0/0/0/0 Lore% 7 Gallery% 17 Achievement% 17 Wizard Run 0 Options --------- ASCII 0 Keyboard 0 Movement Mouse Keybinds 0 Fullscreen 2 Font 18/SmallcapsGlow Map View 76x50 Tactical HUD 1 Map Filters NONE Filters NONE Steam 1 RUN: 99cf354f-eec6-4b63-ac7c-e49640b6497f